[Event "Titled Tuesday Blitz February 07 Early 2023"]
[White "Gokerkan, Cem Kaan"]
[Black "Koellner, Ruben Gideon"]
[WhiteFideId "6336760"]
[BlackFideId "12993093"]
[WhiteElo "2500"]
[BlackElo "2426"]
[Result "1/2-1/2"]
[Round "03"]
[TimeControl "180+2"]
[Date "2023.02.07"]
[WhiteClock "0:00:04"]
[BlackClock "0:00:04"]

1. e4 {[%clk 0:03:00]}  d6 {[%clk 0:02:59]} 2. d4 {[%clk 0:03:00]}  Nf6 {[%clk 0:02:59]} 3. Nc3 {[%clk 0:03:01]}  e5 {[%clk 0:02:59]} 4. Nf3 {[%clk 0:03:02]}  Nbd7 {[%clk 0:02:59]} 5. Rg1 {[%clk 0:03:03]}  c6 {[%clk 0:02:56]} 6. g4 {[%clk 0:03:03]}  h6 {[%clk 0:02:57]} 7. h4 {[%clk 0:02:59]}  exd4 {[%clk 0:02:55]} 8. Nxd4 {[%clk 0:02:59]}  Ne5 {[%clk 0:02:55]} 9. g5 {[%clk 0:02:51]}  hxg5 {[%clk 0:02:56]} 10. hxg5 {[%clk 0:02:52]}  Nfg4 {[%clk 0:02:56]} 11. f3 {[%clk 0:01:44]}  Nh2 {[%clk 0:02:49]} 12. Be2 {[%clk 0:01:39]}  Qb6 {[%clk 0:02:41]} 13. Be3 {[%clk 0:00:57]}  Rh3 {[%clk 0:02:14]} 14. Qd2 {[%clk 0:00:43]}  Qxd4 {[%clk 0:02:03]} 15. Qxd4 {[%clk 0:00:39]}  Nhxf3+ {[%clk 0:02:03]} 16. Kf2 {[%clk 0:00:34]}  Nxd4 {[%clk 0:01:56]} 17. Bxd4 {[%clk 0:00:35]}  Be6 {[%clk 0:01:49]} 18. Rh1 {[%clk 0:00:33]}  Rxh1 {[%clk 0:01:45]} 19. Rxh1 {[%clk 0:00:34]}  b6 {[%clk 0:01:28]} 20. Ba6 {[%clk 0:00:25]}  Rd8 {[%clk 0:01:20]} 21. a4 {[%clk 0:00:24]}  Kd7 {[%clk 0:01:16]} 22. Be2 {[%clk 0:00:21]}  Be7 {[%clk 0:01:14]} 23. Rh7 {[%clk 0:00:21]}  Bxg5 {[%clk 0:01:09]} 24. Rxg7 {[%clk 0:00:22]}  Bf6 {[%clk 0:01:09]} 25. Rh7 {[%clk 0:00:18]}  Ng4+ {[%clk 0:01:07]} 26. Bxg4 {[%clk 0:00:17]}  Bxd4+ {[%clk 0:01:07]} 27. Kf3 {[%clk 0:00:18]}  Bxg4+ {[%clk 0:01:04]} 28. Kxg4 {[%clk 0:00:19]}  Be5 {[%clk 0:01:01]} 29. Rxf7+ {[%clk 0:00:18]}  Ke6 {[%clk 0:00:59]} 30. Rxa7 {[%clk 0:00:19]}  Rg8+ {[%clk 0:00:58]} 31. Kf3 {[%clk 0:00:19]}  Rg3+ {[%clk 0:00:54]} 32. Kf2 {[%clk 0:00:20]}  Rh3 {[%clk 0:00:54]} 33. Rb7 {[%clk 0:00:10]}  Bd4+ {[%clk 0:00:28]} 34. Ke2 {[%clk 0:00:10]}  Bxc3 {[%clk 0:00:19]} 35. bxc3 {[%clk 0:00:11]}  Rxc3 {[%clk 0:00:18]} 36. Kd2 {[%clk 0:00:11]}  Rc4 {[%clk 0:00:15]} 37. Rxb6 {[%clk 0:00:11]}  Rxa4 {[%clk 0:00:14]} 38. Rxc6 {[%clk 0:00:09]}  Rxe4 {[%clk 0:00:14]} 39. Rc8 {[%clk 0:00:10]}  Kd5 {[%clk 0:00:13]} 40. Rh8 {[%clk 0:00:10]}  Re5 {[%clk 0:00:12]} 41. Kd3 {[%clk 0:00:10]}  Rg5 {[%clk 0:00:12]} 42. c4+ {[%clk 0:00:10]}  Kc5 {[%clk 0:00:11]} 43. Rc8+ {[%clk 0:00:11]}  Kb6 {[%clk 0:00:11]} 44. Kd4 {[%clk 0:00:10]}  Kb7 {[%clk 0:00:11]} 45. Rf8 {[%clk 0:00:10]}  Kc6 {[%clk 0:00:12]} 46. Rf4 {[%clk 0:00:09]}  Rh5 {[%clk 0:00:11]} 47. Rg4 {[%clk 0:00:09]}  Rf5 {[%clk 0:00:11]} 48. Rh4 {[%clk 0:00:09]}  Rg5 {[%clk 0:00:12]} 49. Rf4 {[%clk 0:00:09]}  Rh5 {[%clk 0:00:12]} 50. Rf8 {[%clk 0:00:10]}  Rh4+ {[%clk 0:00:12]} 51. Kc3 {[%clk 0:00:10]}  Rh1 {[%clk 0:00:11]} 52. Rc8+ {[%clk 0:00:10]}  Kd7 {[%clk 0:00:12]} 53. Rg8 {[%clk 0:00:11]}  Kc6 {[%clk 0:00:12]} 54. Rg2 {[%clk 0:00:11]}  Rc1+ {[%clk 0:00:12]} 55. Kb3 {[%clk 0:00:10]}  Rb1+ {[%clk 0:00:12]} 56. Kc2 {[%clk 0:00:11]}  Rh1 {[%clk 0:00:12]} 57. Rg8 {[%clk 0:00:10]}  Kc5 {[%clk 0:00:11]} 58. Rc8+ {[%clk 0:00:10]}  Kd4 {[%clk 0:00:11]} 59. Rc6 {[%clk 0:00:10]}  Rh6 {[%clk 0:00:08]} 60. Kb3 {[%clk 0:00:10]}  Rg6 {[%clk 0:00:06]} 61. Kb4 {[%clk 0:00:10]}  Ke5 {[%clk 0:00:05]} 62. Rc8 {[%clk 0:00:07]}  Rg1 {[%clk 0:00:04]} 63. Kc3 {[%clk 0:00:02]}  Rc1+ {[%clk 0:00:04]} 64. Kd3 {[%clk 0:00:03]}  Rd1+ {[%clk 0:00:04]} 65. Kc3 {[%clk 0:00:04]}  Rc1+ {[%clk 0:00:04]} 66. Kd2 {[%clk 0:00:04]}  Ra1 {[%clk 0:00:04]} 67. Kc2 {[%clk 0:00:03]}  Rh1 {[%clk 0:00:03]} 68. Kb3 {[%clk 0:00:04]}  Rb1+ {[%clk 0:00:03]} 69. Kc3 {[%clk 0:00:04]}  Rc1+ {[%clk 0:00:04]} 1/2-1/2


[Site "https://www.chess.com"]

[Event "Titled Tuesday Blitz February 07 Early 2023"]
[White "Shuvalova, Polina"]
[Black "Zhigalko, Sergei"]
[WhiteFideId "24171760"]
[BlackFideId "13502956"]
[WhiteElo "2484"]
[BlackElo "2572"]
[Result "1/2-1/2"]
[Round "03"]
[TimeControl "180+2"]
[Date "2023.02.07"]
[WhiteClock "0:00:47"]
[BlackClock "0:00:14"]

1. e4 {[%clk 0:03:00]}  c5 {[%clk 0:02:59]} 2. Nf3 {[%clk 0:02:59]}  Nc6 {[%clk 0:03:00]} 3. Bb5 {[%clk 0:02:58]}  Nf6 {[%clk 0:03:00]} 4. Nc3 {[%clk 0:02:54]}  Qc7 {[%clk 0:03:00]} 5. O-O {[%clk 0:02:52]}  Nd4 {[%clk 0:03:00]} 6. Re1 {[%clk 0:02:49]}  a6 {[%clk 0:02:58]} 7. Bf1 {[%clk 0:02:47]}  e5 {[%clk 0:02:57]} 8. Nd5 {[%clk 0:02:40]}  Nxd5 {[%clk 0:02:57]} 9. exd5 {[%clk 0:02:41]}  d6 {[%clk 0:02:58]} 10. c3 {[%clk 0:02:38]}  Nxf3+ {[%clk 0:02:58]} 11. Qxf3 {[%clk 0:02:39]}  Be7 {[%clk 0:02:57]} 12. b4 {[%clk 0:02:35]}  O-O {[%clk 0:02:53]} 13. a4 {[%clk 0:02:30]}  f5 {[%clk 0:02:43]} 14. bxc5 {[%clk 0:02:22]}  dxc5 {[%clk 0:02:43]} 15. c4 {[%clk 0:02:17]}  e4 {[%clk 0:02:38]} 16. Qb3 {[%clk 0:02:02]}  Bd6 {[%clk 0:02:23]} 17. g3 {[%clk 0:01:56]}  Bd7 {[%clk 0:01:48]} 18. Bb2 {[%clk 0:01:54]}  Rae8 {[%clk 0:01:45]} 19. d3 {[%clk 0:01:42]}  e3 {[%clk 0:01:30]} 20. Rxe3 {[%clk 0:01:24]}  Rxe3 {[%clk 0:01:28]} 21. fxe3 {[%clk 0:01:25]}  Bxg3 {[%clk 0:01:28]} 22. hxg3 {[%clk 0:00:53]}  Qxg3+ {[%clk 0:01:28]} 23. Bg2 {[%clk 0:00:53]}  Qxe3+ {[%clk 0:01:20]} 24. Kf1 {[%clk 0:00:47]}  Qf4+ {[%clk 0:00:54]} 25. Kg1 {[%clk 0:00:46]}  Qe3+ {[%clk 0:00:20]} 26. Kf1 {[%clk 0:00:46]}  Qf4+ {[%clk 0:00:14]} 27. Kg1 {[%clk 0:00:47]}  Qe3+ {[%clk 0:00:14]} 1/2-1/2


[Site "https://www.chess.com"]

[Event "Titled Tuesday Blitz February 07 Early 2023"]
[White "Pinheiro, Iung Alicio de O."]
[Black "Ozen, Bahadir"]
[WhiteFideId "2104350"]
[BlackFideId "6337058"]
[WhiteElo "2306"]
[BlackElo "2369"]
[Result "0-1"]
[Round "03"]
[TimeControl "180+2"]
[Date "2023.02.07"]
[WhiteClock "0:00:03"]
[BlackClock "0:00:05"]

1. e4 {[%clk 0:03:00]}  d6 {[%clk 0:02:50]} 2. d4 {[%clk 0:02:59]}  Nf6 {[%clk 0:02:50]} 3. Nc3 {[%clk 0:02:59]}  e5 {[%clk 0:02:51]} 4. Nf3 {[%clk 0:02:58]}  Nbd7 {[%clk 0:02:51]} 5. Rg1 {[%clk 0:02:57]}  g6 {[%clk 0:02:51]} 6. g4 {[%clk 0:02:57]}  Bg7 {[%clk 0:02:51]} 7. g5 {[%clk 0:02:55]}  Nh5 {[%clk 0:02:51]} 8. Be3 {[%clk 0:02:55]}  O-O {[%clk 0:02:51]} 9. Qd2 {[%clk 0:02:51]}  c6 {[%clk 0:02:48]} 10. O-O-O {[%clk 0:02:48]}  Re8 {[%clk 0:02:38]} 11. dxe5 {[%clk 0:02:46]}  dxe5 {[%clk 0:02:38]} 12. Bh3 {[%clk 0:02:45]}  Qe7 {[%clk 0:02:33]} 13. Bg4 {[%clk 0:02:08]}  Nf4 {[%clk 0:02:23]} 14. Bxd7 {[%clk 0:01:52]}  Rd8 {[%clk 0:02:22]} 15. Bxf4 {[%clk 0:01:47]}  Rxd7 {[%clk 0:02:18]} 16. Qe3 {[%clk 0:01:46]}  exf4 {[%clk 0:02:18]} 17. Qxf4 {[%clk 0:01:45]}  Bxc3 {[%clk 0:01:50]} 18. Rxd7 {[%clk 0:01:11]}  Bxb2+ {[%clk 0:01:34]} 19. Kxb2 {[%clk 0:01:09]}  Qb4+ {[%clk 0:01:35]} 20. Kc1 {[%clk 0:01:03]}  Bxd7 {[%clk 0:01:34]} 21. Qf6 {[%clk 0:00:59]}  Qa3+ {[%clk 0:01:33]} 22. Kd2 {[%clk 0:00:55]}  Be6 {[%clk 0:01:27]} 23. Nd4 {[%clk 0:00:44]}  Qa5+ {[%clk 0:01:23]} 24. Ke3 {[%clk 0:00:44]}  Qc3+ {[%clk 0:01:22]} 25. Kf4 {[%clk 0:00:40]}  Bxa2 {[%clk 0:01:16]} 26. Rg3 {[%clk 0:00:31]}  Qd2+ {[%clk 0:01:15]} 27. Kf3 {[%clk 0:00:30]}  Re8 {[%clk 0:00:55]} 28. Kg2 {[%clk 0:00:26]}  c5 {[%clk 0:00:41]} 29. Nb5 {[%clk 0:00:16]}  Qxc2 {[%clk 0:00:15]} 30. Nd6 {[%clk 0:00:14]}  Rf8 {[%clk 0:00:15]} 31. Rh3 {[%clk 0:00:10]}  Be6 {[%clk 0:00:15]} 32. Rh4 {[%clk 0:00:10]}  Qd3 {[%clk 0:00:11]} 33. Qe5 {[%clk 0:00:08]}  c4 {[%clk 0:00:07]} 34. f3 {[%clk 0:00:05]}  Qd2+ {[%clk 0:00:07]} 35. Kg1 {[%clk 0:00:04]}  c3 {[%clk 0:00:06]} 36. Rf4 {[%clk 0:00:03]}  c2 {[%clk 0:00:05]} 0-1


[Site "https://www.chess.com"]

[Event "Titled Tuesday Blitz February 07 Early 2023"]
[White "Yuan, Qingyu"]
[Black "Kalogeris, Ioannis"]
[WhiteFideId "8609772"]
[BlackFideId "4239563"]
[WhiteElo "2373"]
[BlackElo "2423"]
[Result "1/2-1/2"]
[Round "03"]
[TimeControl "180+2"]
[Date "2023.02.07"]
[WhiteClock "0:00:03"]
[BlackClock "0:00:05"]

1. e4 {[%clk 0:03:00]}  e5 {[%clk 0:02:59]} 2. Nf3 {[%clk 0:03:01]}  Nc6 {[%clk 0:03:00]} 3. Bb5 {[%clk 0:03:01]}  a6 {[%clk 0:03:00]} 4. Ba4 {[%clk 0:03:01]}  Nf6 {[%clk 0:02:59]} 5. d3 {[%clk 0:03:02]}  b5 {[%clk 0:02:59]} 6. Bb3 {[%clk 0:03:02]}  Bc5 {[%clk 0:02:59]} 7. Nc3 {[%clk 0:03:00]}  d6 {[%clk 0:02:58]} 8. Nd5 {[%clk 0:03:00]}  h6 {[%clk 0:02:43]} 9. c3 {[%clk 0:02:56]}  Rb8 {[%clk 0:02:34]} 10. d4 {[%clk 0:02:41]}  exd4 {[%clk 0:02:28]} 11. cxd4 {[%clk 0:02:42]}  Ba7 {[%clk 0:02:10]} 12. Be3 {[%clk 0:02:30]}  O-O {[%clk 0:02:05]} 13. O-O {[%clk 0:02:17]}  Ng4 {[%clk 0:01:51]} 14. Bf4 {[%clk 0:01:50]}  Ne7 {[%clk 0:01:47]} 15. e5 {[%clk 0:01:21]}  Bb7 {[%clk 0:01:10]} 16. Nxe7+ {[%clk 0:00:34]}  Qxe7 {[%clk 0:01:11]} 17. Re1 {[%clk 0:00:32]}  dxe5 {[%clk 0:00:53]} 18. Bxe5 {[%clk 0:00:32]}  Qd7 {[%clk 0:00:50]} 19. h3 {[%clk 0:00:20]}  Nxe5 {[%clk 0:00:49]} 20. Nxe5 {[%clk 0:00:20]}  Qxd4 {[%clk 0:00:34]} 21. Qxd4 {[%clk 0:00:20]}  Bxd4 {[%clk 0:00:34]} 22. Nd7 {[%clk 0:00:21]}  Bxb2 {[%clk 0:00:30]} 23. Rad1 {[%clk 0:00:20]}  c5 {[%clk 0:00:18]} 24. Nxb8 {[%clk 0:00:11]}  Rxb8 {[%clk 0:00:17]} 25. Bd5 {[%clk 0:00:10]}  Bd4 {[%clk 0:00:14]} 26. Bxb7 {[%clk 0:00:09]}  Rxb7 {[%clk 0:00:15]} 27. Re8+ {[%clk 0:00:09]}  Kh7 {[%clk 0:00:15]} 28. Ra8 {[%clk 0:00:08]}  Rb6 {[%clk 0:00:16]} 29. Kf1 {[%clk 0:00:07]}  h5 {[%clk 0:00:16]} 30. g3 {[%clk 0:00:06]}  Rf6 {[%clk 0:00:15]} 31. Rd2 {[%clk 0:00:06]}  h4 {[%clk 0:00:15]} 32. g4 {[%clk 0:00:05]}  Kg6 {[%clk 0:00:14]} 33. Kg2 {[%clk 0:00:06]}  Re6 {[%clk 0:00:12]} 34. Kf1 {[%clk 0:00:05]}  Kg5 {[%clk 0:00:13]} 35. Re2 {[%clk 0:00:06]}  Rd6 {[%clk 0:00:10]} 36. Re4 {[%clk 0:00:06]}  c4 {[%clk 0:00:07]} 37. f4+ {[%clk 0:00:06]}  Kg6 {[%clk 0:00:08]} 38. Rh8 {[%clk 0:00:04]}  c3 {[%clk 0:00:07]} 39. Rh5 {[%clk 0:00:02]}  c2 {[%clk 0:00:05]} 40. Rg5+ {[%clk 0:00:02]}  Kf6 {[%clk 0:00:03]} 41. Rf5+ {[%clk 0:00:02]}  Kg6 {[%clk 0:00:04]} 42. Rg5+ {[%clk 0:00:03]}  Kf6 {[%clk 0:00:04]} 43. Rf5+ {[%clk 0:00:03]}  Kg6 {[%clk 0:00:05]} 44. Rg5+ {[%clk 0:00:03]} 1/2-1/2


[Site "https://www.chess.com"]

[Event "Titled Tuesday Blitz February 07 Early 2023"]
[White "Orzech, Dominik"]
[Black "Ivic, Velimir"]
[WhiteFideId "1115065"]
[BlackFideId "950122"]
[WhiteElo "2308"]
[BlackElo "2595"]
[Result "1-0"]
[Round "03"]
[TimeControl "180+2"]
[Date "2023.02.07"]
[WhiteClock "0:01:08"]
[BlackClock "0:00:01"]

1. Nf3 {[%clk 0:03:00]}  Nf6 {[%clk 0:02:58]} 2. c4 {[%clk 0:03:00]}  g6 {[%clk 0:02:54]} 3. d4 {[%clk 0:03:00]}  Bg7 {[%clk 0:02:53]} 4. g3 {[%clk 0:03:00]}  O-O {[%clk 0:02:49]} 5. Bg2 {[%clk 0:03:00]}  d6 {[%clk 0:02:49]} 6. O-O {[%clk 0:02:59]}  c6 {[%clk 0:02:49]} 7. Nc3 {[%clk 0:02:59]}  Bf5 {[%clk 0:02:47]} 8. Nh4 {[%clk 0:02:56]}  Be6 {[%clk 0:02:45]} 9. d5 {[%clk 0:02:55]}  Bd7 {[%clk 0:02:44]} 10. e4 {[%clk 0:02:55]}  Na6 {[%clk 0:02:34]} 11. Nf3 {[%clk 0:02:49]}  cxd5 {[%clk 0:02:28]} 12. cxd5 {[%clk 0:02:41]}  Nc5 {[%clk 0:02:25]} 13. Nd4 {[%clk 0:02:41]}  Qb6 {[%clk 0:02:24]} 14. Rb1 {[%clk 0:02:39]}  Ncxe4 {[%clk 0:02:21]} 15. Nxe4 {[%clk 0:02:35]}  Nxe4 {[%clk 0:02:20]} 16. Be3 {[%clk 0:02:35]}  Nc5 {[%clk 0:02:04]} 17. b4 {[%clk 0:02:34]}  Na4 {[%clk 0:02:04]} 18. Ne6 {[%clk 0:02:34]}  Qa6 {[%clk 0:01:35]} 19. Nxf8 {[%clk 0:02:20]}  Rxf8 {[%clk 0:01:25]} 20. Rc1 {[%clk 0:02:10]}  Nc3 {[%clk 0:01:22]} 21. Qd2 {[%clk 0:02:09]}  Ne2+ {[%clk 0:01:21]} 22. Kh1 {[%clk 0:02:07]}  Nxc1 {[%clk 0:01:22]} 23. Rxc1 {[%clk 0:02:07]}  Rc8 {[%clk 0:00:48]} 24. Rxc8+ {[%clk 0:02:05]}  Bxc8 {[%clk 0:00:49]} 25. Qc2 {[%clk 0:02:05]}  b6 {[%clk 0:00:37]} 26. Qc7 {[%clk 0:02:01]}  Bf8 {[%clk 0:00:30]} 27. Qd8 {[%clk 0:01:59]}  Bf5 {[%clk 0:00:28]} 28. Bh6 {[%clk 0:01:56]}  Qc8 {[%clk 0:00:28]} 29. Qxc8 {[%clk 0:01:50]}  Bxc8 {[%clk 0:00:29]} 30. Be3 {[%clk 0:01:47]}  Ba6 {[%clk 0:00:22]} 31. a4 {[%clk 0:01:47]}  Bc4 {[%clk 0:00:20]} 32. a5 {[%clk 0:01:47]}  bxa5 {[%clk 0:00:20]} 33. bxa5 {[%clk 0:01:47]}  a6 {[%clk 0:00:21]} 34. Bf3 {[%clk 0:01:46]}  e6 {[%clk 0:00:19]} 35. dxe6 {[%clk 0:01:44]}  fxe6 {[%clk 0:00:20]} 36. h4 {[%clk 0:01:44]}  Kf7 {[%clk 0:00:19]} 37. Bb7 {[%clk 0:01:43]}  d5 {[%clk 0:00:19]} 38. Kg2 {[%clk 0:01:43]}  e5 {[%clk 0:00:19]} 39. Kf3 {[%clk 0:01:42]}  Bb4 {[%clk 0:00:17]} 40. Bb6 {[%clk 0:01:42]}  h5 {[%clk 0:00:15]} 41. Ke3 {[%clk 0:01:42]}  Ke6 {[%clk 0:00:10]} 42. Bc8+ {[%clk 0:01:41]}  Kd6 {[%clk 0:00:11]} 43. Bb7 {[%clk 0:01:41]}  Bc5+ {[%clk 0:00:06]} 44. Bxc5+ {[%clk 0:01:39]}  Kxc5 {[%clk 0:00:07]} 45. f4 {[%clk 0:01:39]}  d4+ {[%clk 0:00:05]} 46. Ke4 {[%clk 0:01:38]}  exf4 {[%clk 0:00:04]} 47. Kxf4 {[%clk 0:01:38]}  d3 {[%clk 0:00:02]} 48. Kg5 {[%clk 0:01:37]}  Bd5 {[%clk 0:00:01]} 49. Bxa6 {[%clk 0:01:35]}  d2 {[%clk 0:00:01]} 50. Be2 {[%clk 0:01:35]}  Bc4 {[%clk 0:00:02]} 51. Bd1 {[%clk 0:01:34]}  Bd3 {[%clk 0:00:02]} 52. Kf4 {[%clk 0:01:26]}  Kb4 {[%clk 0:00:02]} 53. Ke3 {[%clk 0:01:26]}  Kc3 {[%clk 0:00:02]} 54. g4 {[%clk 0:01:23]}  Bc2 {[%clk 0:00:02]} 55. Be2 {[%clk 0:01:16]}  d1=N+ {[%clk 0:00:01]} 56. Kf4 {[%clk 0:01:14]}  Nf2 {[%clk 0:00:01]} 57. gxh5 {[%clk 0:01:13]}  gxh5 {[%clk 0:00:01]} 58. a6 {[%clk 0:01:13]}  Kd4 {[%clk 0:00:01]} 59. Bf3 {[%clk 0:01:11]}  Nd3+ {[%clk 0:00:01]} 60. Kg5 {[%clk 0:01:10]}  Ne5 {[%clk 0:00:01]} 61. Bg2 {[%clk 0:01:08]}  Bd1 {[%clk 0:00:01]} 62. a7 {[%clk 0:01:08]} 1-0


[Site "https://www.chess.com"]

[Event "Titled Tuesday Blitz February 07 Early 2023"]
[White "Lamaze, Simon"]
[Black "Ohanyan, Emin"]
[WhiteFideId "36069264"]
[BlackFideId "13312022"]
[WhiteElo "2363"]
[BlackElo "2444"]
[Result "1/2-1/2"]
[Round "03"]
[TimeControl "180+2"]
[Date "2023.02.07"]
[WhiteClock "0:00:11"]
[BlackClock "0:00:04"]

1. e4 {[%clk 0:03:00]}  e5 {[%clk 0:03:00]} 2. Nf3 {[%clk 0:02:49]}  Nc6 {[%clk 0:03:00]} 3. Bc4 {[%clk 0:02:49]}  Nf6 {[%clk 0:03:00]} 4. d3 {[%clk 0:02:49]}  d5 {[%clk 0:03:00]} 5. exd5 {[%clk 0:02:48]}  Nxd5 {[%clk 0:03:01]} 6. O-O {[%clk 0:02:46]}  Bc5 {[%clk 0:03:01]} 7. c3 {[%clk 0:02:45]}  O-O {[%clk 0:03:01]} 8. Nbd2 {[%clk 0:02:45]}  Nb6 {[%clk 0:03:00]} 9. Bb5 {[%clk 0:02:45]}  Bg4 {[%clk 0:02:58]} 10. h3 {[%clk 0:02:42]}  Bh5 {[%clk 0:02:58]} 11. Ne4 {[%clk 0:02:39]}  Bd6 {[%clk 0:02:56]} 12. Ng3 {[%clk 0:02:39]}  Bg6 {[%clk 0:02:56]} 13. Re1 {[%clk 0:02:36]}  f6 {[%clk 0:02:33]} 14. Nh4 {[%clk 0:02:31]}  Ne7 {[%clk 0:02:22]} 15. Nxg6 {[%clk 0:02:15]}  hxg6 {[%clk 0:02:22]} 16. d4 {[%clk 0:02:13]}  exd4 {[%clk 0:02:05]} 17. Qxd4 {[%clk 0:02:13]}  Bxg3 {[%clk 0:02:05]} 18. Qxd8 {[%clk 0:02:13]}  Raxd8 {[%clk 0:02:02]} 19. fxg3 {[%clk 0:02:12]}  Ned5 {[%clk 0:01:57]} 20. Bf1 {[%clk 0:02:08]}  Rfe8 {[%clk 0:01:51]} 21. Rxe8+ {[%clk 0:02:08]}  Rxe8 {[%clk 0:01:52]} 22. Kf2 {[%clk 0:02:09]}  Nc8 {[%clk 0:01:50]} 23. Bd2 {[%clk 0:02:08]}  Nd6 {[%clk 0:01:50]} 24. Kg1 {[%clk 0:02:01]}  Ne4 {[%clk 0:01:50]} 25. Be1 {[%clk 0:02:01]}  Ne3 {[%clk 0:01:49]} 26. Bd3 {[%clk 0:01:58]}  f5 {[%clk 0:01:48]} 27. Bf2 {[%clk 0:01:53]}  Nxf2 {[%clk 0:01:34]} 28. Kxf2 {[%clk 0:01:54]}  Kf8 {[%clk 0:01:33]} 29. Re1 {[%clk 0:01:50]}  Nd5 {[%clk 0:01:33]} 30. Rxe8+ {[%clk 0:01:51]}  Kxe8 {[%clk 0:01:34]} 31. Bc4 {[%clk 0:01:51]}  Nf6 {[%clk 0:01:26]} 32. Kf3 {[%clk 0:01:48]}  Ke7 {[%clk 0:01:27]} 33. Kf4 {[%clk 0:01:47]}  Ne4 {[%clk 0:01:26]} 34. Bd3 {[%clk 0:01:44]}  Nc5 {[%clk 0:01:21]} 35. Bc2 {[%clk 0:01:34]}  Kf6 {[%clk 0:01:19]} 36. h4 {[%clk 0:01:34]}  Ne6+ {[%clk 0:01:19]} 37. Kf3 {[%clk 0:01:34]}  g5 {[%clk 0:01:15]} 38. g4 {[%clk 0:01:30]}  f4 {[%clk 0:00:51]} 39. g3 {[%clk 0:01:25]}  gxh4 {[%clk 0:00:44]} 40. gxh4 {[%clk 0:01:24]}  g5 {[%clk 0:00:44]} 41. h5 {[%clk 0:01:15]}  Kg7 {[%clk 0:00:40]} 42. Ke4 {[%clk 0:01:14]}  Kh6 {[%clk 0:00:38]} 43. Ke5 {[%clk 0:01:09]}  Nc5 {[%clk 0:00:37]} 44. Kd5 {[%clk 0:01:10]}  Nd7 {[%clk 0:00:34]} 45. Bd1 {[%clk 0:01:05]}  Kg7 {[%clk 0:00:24]} 46. Bf3 {[%clk 0:00:58]}  Kf6 {[%clk 0:00:21]} 47. Kd4 {[%clk 0:00:55]}  Ne5 {[%clk 0:00:20]} 48. Bxb7 {[%clk 0:00:53]}  Nxg4 {[%clk 0:00:21]} 49. b4 {[%clk 0:00:38]}  Nh6 {[%clk 0:00:09]} 50. c4 {[%clk 0:00:35]}  g4 {[%clk 0:00:08]} 51. a4 {[%clk 0:00:33]}  Kg5 {[%clk 0:00:08]} 52. c5 {[%clk 0:00:30]}  Kxh5 {[%clk 0:00:06]} 53. b5 {[%clk 0:00:29]}  Nf5+ {[%clk 0:00:03]} 54. Ke5 {[%clk 0:00:30]}  Ne3 {[%clk 0:00:01]} 55. Kxf4 {[%clk 0:00:28]}  Nc4 {[%clk 0:00:02]} 56. Bd5 {[%clk 0:00:26]}  Nb2 {[%clk 0:00:02]} 57. Bb3 {[%clk 0:00:25]}  Nd3+ {[%clk 0:00:01]} 58. Kf5 {[%clk 0:00:24]}  Nxc5 {[%clk 0:00:02]} 59. Bd1 {[%clk 0:00:24]}  Kh4 {[%clk 0:00:01]} 60. a5 {[%clk 0:00:21]}  g3 {[%clk 0:00:02]} 61. Bf3 {[%clk 0:00:21]}  Na4 {[%clk 0:00:02]} 62. Ke5 {[%clk 0:00:20]}  Nc3 {[%clk 0:00:02]} 63. Kd4 {[%clk 0:00:12]}  Nxb5+ {[%clk 0:00:03]} 64. Kc5 {[%clk 0:00:13]}  Na3 {[%clk 0:00:02]} 65. Kc6 {[%clk 0:00:13]}  a6 {[%clk 0:00:02]} 66. Kb7 {[%clk 0:00:12]}  Nc4 {[%clk 0:00:02]} 67. Kxa6 {[%clk 0:00:13]}  Kg5 {[%clk 0:00:02]} 68. Kb5 {[%clk 0:00:11]}  Nxa5 {[%clk 0:00:02]} 69. Kxa5 {[%clk 0:00:12]}  Kf4 {[%clk 0:00:03]} 70. Bh1 {[%clk 0:00:12]}  Ke5 {[%clk 0:00:02]} 71. Kb5 {[%clk 0:00:12]}  Kd4 {[%clk 0:00:02]} 72. Kc6 {[%clk 0:00:12]}  Kc4 {[%clk 0:00:03]} 73. Kxc7 {[%clk 0:00:12]}  g2 {[%clk 0:00:04]} 74. Bxg2 {[%clk 0:00:11]} 1/2-1/2


[Site "https://www.chess.com"]

[Event "Titled Tuesday Blitz February 07 Early 2023"]
[White "Kaasen, Tor Fredrik"]
[Black "Sourath Biswas"]
[WhiteFideId "1516647"]
[BlackFideId "35091484"]
[WhiteElo "2480"]
[BlackElo "2281"]
[Result "1-0"]
[Round "03"]
[TimeControl "180+2"]
[Date "2023.02.07"]
[WhiteClock "0:01:11"]
[BlackClock "0:00:47"]

1. d4 {[%clk 0:03:00]}  Nf6 {[%clk 0:03:00]} 2. Nf3 {[%clk 0:03:01]}  g6 {[%clk 0:03:00]} 3. c3 {[%clk 0:02:59]}  Bg7 {[%clk 0:03:01]} 4. Bg5 {[%clk 0:03:00]}  O-O {[%clk 0:03:01]} 5. Nbd2 {[%clk 0:02:59]}  d5 {[%clk 0:03:02]} 6. e3 {[%clk 0:02:57]}  c5 {[%clk 0:03:00]} 7. Bd3 {[%clk 0:02:56]}  Nc6 {[%clk 0:02:59]} 8. O-O {[%clk 0:02:56]}  Nd7 {[%clk 0:02:55]} 9. Qe2 {[%clk 0:02:54]}  Qb6 {[%clk 0:02:51]} 10. Rab1 {[%clk 0:02:51]}  e5 {[%clk 0:02:50]} 11. dxe5 {[%clk 0:02:44]}  Ndxe5 {[%clk 0:02:50]} 12. Nxe5 {[%clk 0:02:44]}  Nxe5 {[%clk 0:02:51]} 13. Bc2 {[%clk 0:02:43]}  d4 {[%clk 0:02:50]} 14. exd4 {[%clk 0:02:36]}  cxd4 {[%clk 0:02:51]} 15. cxd4 {[%clk 0:02:36]}  Qxd4 {[%clk 0:02:52]} 16. Be3 {[%clk 0:02:30]}  Qh4 {[%clk 0:02:51]} 17. h3 {[%clk 0:02:26]}  Be6 {[%clk 0:02:46]} 18. Rfd1 {[%clk 0:02:06]}  Rac8 {[%clk 0:02:46]} 19. Bb3 {[%clk 0:02:01]}  Bf5 {[%clk 0:02:46]} 20. Rbc1 {[%clk 0:01:51]}  Rxc1 {[%clk 0:02:36]} 21. Rxc1 {[%clk 0:01:51]}  Nd3 {[%clk 0:02:37]} 22. Rc7 {[%clk 0:01:48]}  Nf4 {[%clk 0:01:25]} 23. Bxf4 {[%clk 0:01:42]}  Qxf4 {[%clk 0:01:26]} 24. Rxf7 {[%clk 0:01:43]}  Kh8 {[%clk 0:01:18]} 25. Rxg7 {[%clk 0:01:41]}  Bd3 {[%clk 0:01:06]} 26. Qe7 {[%clk 0:01:27]}  Qxf2+ {[%clk 0:00:58]} 27. Kh1 {[%clk 0:01:27]}  g5 {[%clk 0:00:47]} 28. Qe5 {[%clk 0:01:11]} 1-0


[Site "https://www.chess.com"]